fUST/lending_fUST_20241123
["ID","MTS","AMOUNT","RATE_DAILY","PERIOD"]
[343114160,1732366249728,-581.08,0.00020821,2]
[343114161,1732366249739,-1792.59,0.00020821,2]
[343114162,1732366249750,-677.62,0.00020821,2]
[343114163,1732366249766,-3879.56,0.00020821,2]
[343114164,1732366249777,-663.99,0.00020821,2]
[343114165,1732366249788,-500.0,0.00020821,2]
[343114166,1732366249800,-577.21,0.00020821,2]
[343114167,1732366249811,-500.0,0.00020821,2]
[343114168,1732366249822,-833.58,0.00020821,2]
[343114169,1732366249833,-1516.41,0.00020821,2]
[343114170,1732366249844,-500.0,0.00020821,2]
[343114171,1732366249855,-1060.44,0.00020821,2]
[343114172,1732366249865,-500.0,0.00020821,2]
[343114173,1732366249875,-500.0,0.00020821,2]
[343114174,1732366249886,-500.0,0.00020821,2]
[343114175,1732366249897,-638.51,0.00020821,2]
[343114176,1732366249907,-500.0,0.00020821,2]
[343114177,1732366249918,-885.71,0.00020821,2]
[343114178,1732366249929,-249.21384576,0.00020821,2]
[343114179,1732366249940,-500.0,0.00020821,2]
[343114180,1732366249951,-500.0,0.00020821,2]
[343114181,1732366249961,-500.0,0.00020821,2]
[343114182,1732366249972,-500.0,0.00020821,2]
[343114183,1732366249983,-516.19,0.00020821,2]
[343114184,1732366249994,-593.45,0.00020821,2]
[343114185,1732366250004,-1282.52,0.00020821,2]
[343114186,1732366250015,-571.01248402,0.00020821,2]
[343114187,1732366250027,-887.97,0.00020821,2]
[343114188,1732366250037,-2300.61,0.00020821,2]
[343114189,1732366250048,-500.0,0.00020821,2]
[343114190,1732366250058,-528.07,0.00020821,2]
[343114191,1732366250068,-1538.6,0.00020821,2]
[343114192,1732366250078,-1008.44,0.00020821,2]
[343114193,1732366250088,-636.89,0.00020821,2]
[343114194,1732366250099,-500.0,0.00020821,2]
[343114195,1732366250109,-32000.29,0.00020821,2]
[343114196,1732366250119,-672.04,0.00020821,2]
[343114197,1732366250129,-534.97,0.00020821,2]
[343114198,1732366250139,-626.8,0.00020821,2]
[343114199,1732366250149,-622.12809893,0.00020821,2]
[343114200,1732366250159,-500.0,0.00020821,2]
[343114201,1732366250170,-500.0,0.00020821,2]
[343114202,1732366250181,-635.09,0.00020821,2]
[343114203,1732366250191,-706.69,0.00020821,2]
[343114204,1732366250201,-500.0,0.00020821,2]
[343114205,1732366250211,-500.0,0.00020821,2]
[343114206,1732366250222,-500.0,0.00020821,2]
[343114207,1732366250232,-1504.44,0.00020821,2]
[343114208,1732366250244,-4470.66,0.00020821,2]
[343114209,1732366250254,-1264.94,0.00020821,2]
[343114210,1732366250264,-223.75958548,0.00020821,2]
[343114211,1732366250274,-200.0,0.00020821,2]
[343114212,1732366250285,-500.0,0.00020821,2]
[343114213,1732366250295,-597.49,0.00020821,2]
[343114214,1732366250460,-830.37,0.00020821,2]
[343114215,1732366250470,-2510.69,0.00020821,2]
[343114216,1732366250480,-500.0,0.00020821,2]
[343114217,1732366250490,-1529.76,0.00020821,2]
[343114218,1732366250500,-500.0,0.00020821,2]
[343114219,1732366250513,-950.08,0.00020821,2]
[343114220,1732366250524,-500.0,0.00020821,2]
[343114221,1732366250533,-500.0,0.00020821,2]
[343114222,1732366250543,-2119.31,0.00020821,2]
[343114223,1732366250554,-618.96,0.00020821,2]
[343114224,1732366250563,-882.37,0.00020821,2]
[343114225,1732366250573,-500.0,0.00020821,2]
[343114226,1732366250583,-1056.35,0.00020821,2]
[343114227,1732366250592,-872.19,0.00020821,2]
[343114228,1732366250602,-500.0,0.00020821,2]
[343114229,1732366250615,-500.0,0.00020821,2]
[343114230,1732366250624,-1217.38,0.00020821,2]
[343114231,1732366250634,-500.0,0.00020821,2]
[343114232,1732366250644,-576.84,0.00020821,2]
[343114233,1732366250654,-7473.65,0.00020821,2]
[343114234,1732366250663,-500.0,0.00020821,2]
[343114235,1732366250674,-590.73,0.00020821,2]
[343114236,1732366250684,-500.0,0.00020821,2]
[343114237,1732366250694,-500.0,0.00020821,2]
[343114238,1732366250706,-674.66,0.00020821,2]
[343114239,1732366250725,-500.0,0.00020821,2]
[343114240,1732366250735,-538.85,0.00020821,2]
[343114241,1732366250745,-605.75,0.00020821,2]
[343114242,1732366250756,-850.07,0.00020821,2]
[343114243,1732366250769,-1816.65,0.00020821,2]
[343114244,1732366250778,-13459.67,0.00020821,2]
[343114245,1732366250788,-882.91,0.00020821,2]
[343114246,1732366250799,-500.0,0.00020821,2]
[343114247,1732366250814,-5328.25,0.00020821,2]
[343114248,1732366250825,-738.33,0.00020821,2]
[343114249,1732366250834,-700.55,0.00020821,2]
[343114250,1732366250846,-500.0,0.00020821,2]
[343114251,1732366250856,-575.52,0.00020821,2]
[343114252,1732366250865,-4056.23,0.00020821,2]
[343114253,1732366250875,-546.44,0.00020821,2]
[343114254,1732366250887,-1127.26,0.00020821,2]
[343114255,1732366250897,-500.0,0.00020821,2]
[343114256,1732366250908,-716.22,0.00020821,2]
[343114257,1732366250918,-889.01,0.00020821,2]
[343114258,1732366250928,-500.0,0.00020821,2]
[343114259,1732366250937,-191.225099,0.00020821,2]
[343114260,1732366250947,-191.225099,0.00020821,2]
[343114261,1732366250958,-1129.2,0.00020821,2]
[343114262,1732366250967,-420.0,0.00020893,2]
[343114263,1732366250978,-250000.0,0.000209,7]
[343114264,1732366250987,-754.8,0.00020904,2]
[343114265,1732366250996,-743.76623087,0.00021022,2]
[343114266,1732366251007,-1716.71767311,0.00021094,2]
[343114267,1732366251016,-500.0,0.00021095,2]
[343114268,1732366251026,-171.41815336,0.00021095,2]
[343114269,1732366251037,-500.0,0.00021095,2]
[343114270,1732366251047,-500.0,0.00021095,2]
[343114271,1732366251061,-607.85,0.00021095,2]
[343114272,1732366251070,-1635.9,0.00021095,2]
[343114273,1732366251081,-526.37,0.00021095,2]
[343114274,1732366251093,-500.0,0.00021095,2]
[343114275,1732366251103,-500.0,0.00021095,2]
[343114276,1732366251113,-748.76,0.00021095,2]
[343114277,1732366251123,-479.22567255,0.00021095,2]
[343114278,1732366251133,-578.27,0.00021095,2]
[343114279,1732366251143,-799.01,0.00021095,2]
[343114280,1732366251152,-660.9,0.00021095,2]
[343114281,1732366251161,-500.0,0.00021095,2]
[343114282,1732366251169,-500.0,0.00021095,2]
[343114283,1732366251179,-1095.13,0.00021095,2]
[343114284,1732366251189,-399.77361597,0.00021095,2]
[343114285,1732366251198,-500.0,0.00021095,2]
[343114286,1732366251214,-500.0,0.00021095,2]
[343114287,1732366251223,-500.0,0.00021095,2]
[343114288,1732366251234,-660.43,0.00021095,2]
[343114289,1732366251244,-744.79,0.00021095,2]
[343114290,1732366251257,-602.21,0.00021095,2]
[343114291,1732366251267,-2349.5,0.00021095,2]
[343114292,1732366251277,-2006.5,0.00021095,2]
[343114293,1732366251287,-1551.55,0.00021095,2]
[343114294,1732366251297,-500.0,0.00021095,2]
[343114295,1732366251308,-500.0,0.00021095,2]
[343114296,1732366251317,-1039.57,0.00021095,2]
[343114297,1732366251328,-1747.31,0.00021095,2]
[343114298,1732366251338,-1202.85,0.00021095,2]
[343114299,1732366251348,-1000.07,0.00021095,2]
[343114300,1732366251357,-686.29,0.00021095,2]
[343114301,1732366251367,-1081.0,0.00021095,2]
[343114302,1732366251376,-500.0,0.00021095,2]
[343114303,1732366251386,-1439.48,0.00021095,2]
[343114304,1732366251396,-500.0,0.00021095,2]
[343114305,1732366251406,-604.53,0.00021095,2]
[343114306,1732366251415,-1113.01,0.00021095,2]
[343114307,1732366251425,-500.0,0.00021095,2]
[343114308,1732366251434,-910.06,0.00021095,2]
[343114309,1732366251444,-500.0,0.00021095,2]
[343114310,1732366251453,-500.0,0.00021095,2]
[343114311,1732366251462,-500.0,0.00021095,2]
[343114312,1732366251472,-1063.52,0.00021095,2]
[343114313,1732366251482,-1125.44,0.00021095,2]
[343114314,1732366251492,-999.35,0.00021095,2]
[343114315,1732366251502,-522.08,0.00021095,2]
[343114316,1732366251513,-1708.58,0.00021095,2]
[343114317,1732366251523,-500.0,0.00021095,2]
[343114318,1732366251533,-1059.27,0.00021095,2]
[343114319,1732366251543,-552.4,0.00021095,2]
[343114320,1732366251552,-719.88,0.00021095,2]
[343114321,1732366251563,-615.14,0.00021095,2]
[343114322,1732366251573,-500.0,0.00021095,2]
[343114323,1732366251583,-1102.89,0.00021095,2]
[343114324,1732366251593,-581.08,0.00021095,2]
[343114325,1732366251602,-1792.59,0.00021095,2]
[343114326,1732366251611,-677.62,0.00021095,2]
[343114327,1732366251621,-3879.56,0.00021095,2]
[343114328,1732366251631,-663.99,0.00021095,2]
[343114329,1732366251641,-500.0,0.00021095,2]
[343114330,1732366251651,-577.21,0.00021095,2]
[343114331,1732366251662,-500.0,0.00021095,2]
[343114332,1732366251672,-833.58,0.00021095,2]
[343114333,1732366251681,-1516.41,0.00021095,2]
[343114334,1732366251693,-500.0,0.00021095,2]
[343114335,1732366251707,-1060.44,0.00021095,2]
[343114336,1732366251718,-500.0,0.00021095,2]
[343114337,1732366251728,-500.0,0.00021095,2]
[343114338,1732366251738,-500.0,0.00021095,2]
[343114339,1732366251748,-638.51,0.00021095,2]
[343114340,1732366251758,-500.0,0.00021095,2]
[343114341,1732366251768,-885.71,0.00021095,2]
[343114342,1732366251779,-500.0,0.00021095,2]
[343114343,1732366251789,-500.0,0.00021095,2]
[343114344,1732366251803,-500.0,0.00021095,2]
[343114345,1732366251813,-500.0,0.00021095,2]
[343114346,1732366251823,-516.19,0.00021095,2]
[343114347,1732366251834,-593.45,0.00021095,2]
[343114348,1732366251845,-1282.52,0.00021095,2]
[343114349,1732366251855,-887.97,0.00021095,2]
[343114350,1732366251866,-500.0,0.00021095,2]
[343114351,1732366251876,-2300.61,0.00021095,2]
[343114352,1732366251887,-528.07,0.00021095,2]
[343114353,1732366251896,-1538.6,0.00021095,2]
[343114354,1732366251907,-1008.44,0.00021095,2]
[343114355,1732366251917,-636.89,0.00021095,2]
[343114356,1732366251927,-500.0,0.00021095,2]
[343114357,1732366251937,-32000.29,0.00021095,2]
[343114358,1732366251947,-672.04,0.00021095,2]
[343114359,1732366251960,-534.97,0.00021095,2]
[343114360,1732366251970,-626.8,0.00021095,2]
[343114361,1732366251979,-500.0,0.00021095,2]
[343114362,1732366251989,-635.09,0.00021095,2]
[343114363,1732366251999,-706.69,0.00021095,2]
[343114364,1732366252008,-500.0,0.00021095,2]
[343114365,1732366252018,-500.0,0.00021095,2]
[343114366,1732366252028,-500.0,0.00021095,2]
[343114367,1732366252038,-1504.44,0.00021095,2]
[343114368,1732366252048,-4470.66,0.00021095,2]
[343114369,1732366252057,-1264.94,0.00021095,2]
[343114370,1732366252067,-200.0,0.00021095,2]
[343114371,1732366252077,-424.78681292,0.00021095,2]
[343114372,1732366252086,-597.49,0.00021095,2]
[343114373,1732366252096,-830.37,0.00021095,2]
[343114374,1732366252106,-2510.69,0.00021095,2]
[343114375,1732366252116,-500.0,0.00021095,2]
[343114376,1732366252126,-1529.76,0.00021095,2]
[343114377,1732366252135,-500.0,0.00021095,2]
[343114378,1732366252145,-950.08,0.00021095,2]
[343114379,1732366252155,-500.0,0.00021095,2]
[343114380,1732366252164,-500.0,0.00021095,2]
[343114381,1732366252174,-2119.31,0.00021095,2]
[343114382,1732366252183,-618.96,0.00021095,2]
[343114383,1732366252194,-500.0,0.00021095,2]
[343114384,1732366252205,-500.0,0.00021095,2]
[343114385,1732366252215,-882.37,0.00021095,2]
[343114386,1732366252225,-299.56,0.00021095,2]
[343114387,1732366252235,-500.0,0.00021095,2]
[343114388,1732366252245,-1056.35,0.00021095,2]
[343114389,1732366252255,-872.19,0.00021095,2]
[343114390,1732366252264,-500.0,0.00021095,2]
[343114391,1732366252274,-500.0,0.00021095,2]
[343114392,1732366252284,-1217.38,0.00021095,2]
[343114393,1732366252294,-500.0,0.00021095,2]
[343114394,1732366252303,-576.84,0.00021095,2]
[343114395,1732366252313,-7473.65,0.00021095,2]
[343114396,1732366252323,-500.0,0.00021095,2]
[343114397,1732366252333,-590.73,0.00021095,2]
[343114398,1732366252342,-500.0,0.00021095,2]
[343114399,1732366252352,-500.0,0.00021095,2]
[343114400,1732366252361,-674.66,0.00021095,2]
[343114401,1732366252371,-500.0,0.00021095,2]
[343114402,1732366252380,-538.85,0.00021095,2]
[343114403,1732366252390,-605.75,0.00021095,2]
[343114404,1732366252399,-850.07,0.00021095,2]
[343114405,1732366252408,-1816.65,0.00021095,2]
[343114406,1732366252418,-13459.67,0.00021095,2]
[343114407,1732366252427,-882.91,0.00021095,2]
[343114408,1732366252436,-500.0,0.00021095,2]
[343114409,1732366252446,-500.0,0.00021095,2]
[343114410,1732366252459,-5328.25,0.00021095,2]
[343114411,1732366252469,-738.33,0.00021095,2]
[343114412,1732366252479,-700.55,0.00021095,2]
[343114413,1732366252488,-500.0,0.00021095,2]
[343114414,1732366252497,-575.52,0.00021095,2]
[343114415,1732366252507,-4056.23,0.00021095,2]
[343114416,1732366252517,-546.44,0.00021095,2]
[343114417,1732366252528,-1127.26,0.00021095,2]
[343114418,1732366252537,-500.0,0.00021095,2]
[343114419,1732366252546,-716.22,0.00021095,2]
[343114420,1732366252555,-889.01,0.00021095,2]
[343114421,1732366252565,-500.0,0.00021095,2]
[343114422,1732366252574,-191.225099,0.00021095,2]
[343114423,1732366252583,-191.225099,0.00021095,2]
[343114424,1732366252593,-1129.2,0.00021095,2]
[343114425,1732366252602,-754.8,0.00021096,2]
[343114426,1732366252611,-3000.0,0.000211,2]
[343114427,1732366252621,-3000.0,0.0002111,2]
[343114428,1732366252630,-3000.0,0.0002112,2]
[343114429,1732366252640,-3000.0,0.0002113,2]
[343114430,1732366252650,-3000.0,0.0002114,2]
[343114431,1732366252659,-3000.0,0.0002115,2]
[343114432,1732366252669,-3000.0,0.0002116,2]
[343114433,1732366252679,-3000.0,0.0002117,2]
[343114434,1732366252688,-3000.0,0.0002118,2]
[343114435,1732366252698,-5414.751755,0.0002119,2]
[343114436,1732366252709,-151.0,0.0002127,2]
[343114437,1732366252719,-160.0,0.00021285,6]
[343114438,1732366252729,-754.8,0.00021288,2]
[343114439,1732366252739,-1989.49,0.000213,2]
[343114440,1732366252749,-500.0,0.00021369,2]
[343114441,1732366252758,-500.0,0.00021369,2]
[343114442,1732366252768,-299.49,0.00021369,2]
[343114443,1732366252778,-500.0,0.00021369,2]
[343114444,1732366252788,-500.0,0.00021369,2]
[343114445,1732366252797,-500.0,0.00021369,2]
[343114446,1732366252809,-500.0,0.00021369,2]
[343114447,1732366252819,-607.85,0.00021369,2]
[343114448,1732366252829,-1635.9,0.00021369,2]
[343114449,1732366252838,-526.37,0.00021369,2]
[343114450,1732366252890,-500.0,0.00021369,2]
[343114451,1732366252901,-500.0,0.00021369,2]
[343114452,1732366252910,-748.76,0.00021369,2]
[343114453,1732366252920,-578.27,0.00021369,2]
[343114454,1732366252929,-799.01,0.00021369,2]
[343114455,1732366252938,-660.9,0.00021369,2]
[343114456,1732366252948,-500.0,0.00021369,2]
[343114457,1732366252959,-500.0,0.00021369,2]
[343114458,1732366252968,-1095.13,0.00021369,2]
[343114459,1732366252978,-270.0885445,0.00021369,2]
[343114460,1732366252987,-500.0,0.00021369,2]
[343114461,1732366252996,-500.0,0.00021369,2]
[343114462,1732366253006,-660.43,0.00021369,2]
[343114463,1732366253015,-744.79,0.00021369,2]
[343114464,1732366253024,-602.21,0.00021369,2]
[343114465,1732366253033,-2349.5,0.00021369,2]
[343114466,1732366253043,-2006.5,0.00021369,2]
[343114467,1732366253052,-1551.55,0.00021369,2]
[343114468,1732366253061,-237.75281971,0.00021369,2]
[343114469,1732366253072,-500.0,0.00021369,2]
[343114470,1732366253081,-1039.57,0.00021369,2]
[343114471,1732366253090,-1747.31,0.00021369,2]
[343114472,1732366253100,-1202.85,0.00021369,2]
[343114473,1732366253109,-1000.07,0.00021369,2]
[343114474,1732366253118,-686.29,0.00021369,2]
[343114475,1732366253129,-1081.0,0.00021369,2]
[343114476,1732366253138,-500.0,0.00021369,2]
[343114477,1732366253147,-1439.48,0.00021369,2]
[343114478,1732366253156,-500.0,0.00021369,2]
[343114479,1732366253165,-604.53,0.00021369,2]
[343114480,1732366253174,-1113.01,0.00021369,2]
[343114481,1732366253184,-500.0,0.00021369,2]
[343114482,1732366253193,-910.06,0.00021369,2]
[343114483,1732366253204,-595.85031662,0.00021369,2]
[343114484,1732366253213,-500.0,0.00021369,2]
[343114485,1732366253222,-500.0,0.00021369,2]
[343114486,1732366253232,-1063.52,0.00021369,2]
[343114487,1732366253241,-1125.44,0.00021369,2]
[343114488,1732366253251,-999.35,0.00021369,2]
[343114489,1732366253260,-522.08,0.00021369,2]
[343114490,1732366253270,-1708.58,0.00021369,2]
[343114491,1732366253278,-584.6715661,0.00021369,2]
[343114492,1732366253288,-1059.27,0.00021369,2]
[343114493,1732366253297,-552.4,0.00021369,2]
[343114494,1732366253306,-719.88,0.00021369,2]
[343114495,1732366253315,-615.14,0.00021369,2]
[343114496,1732366253325,-500.0,0.00021369,2]
[343114497,1732366253334,-1102.89,0.00021369,2]
[343114498,1732366253343,-581.08,0.00021369,2]
[343114499,1732366253353,-1792.59,0.00021369,2]
[343114500,1732366253362,-677.62,0.00021369,2]
[343114501,1732366253371,-3879.56,0.00021369,2]
[343114502,1732366253380,-663.99,0.00021369,2]
[343114503,1732366253389,-500.0,0.00021369,2]
[343114504,1732366253399,-577.21,0.00021369,2]
[343114505,1732366253408,-500.0,0.00021369,2]
[343114506,1732366253417,-833.58,0.00021369,2]
[343114507,1732366253427,-1516.41,0.00021369,2]
[343114508,1732366253436,-500.0,0.00021369,2]
[343114509,1732366253445,-1060.44,0.00021369,2]
[343114510,1732366253456,-500.0,0.00021369,2]
[343114511,1732366253466,-500.0,0.00021369,2]
[343114512,1732366253475,-500.0,0.00021369,2]
[343114513,1732366253484,-638.51,0.00021369,2]
[343114514,1732366253494,-500.0,0.00021369,2]
[343114515,1732366253503,-885.71,0.00021369,2]
[343114516,1732366253512,-500.0,0.00021369,2]
[343114517,1732366253521,-500.0,0.00021369,2]
[343114518,1732366253531,-500.0,0.00021369,2]
[343114519,1732366253539,-500.0,0.00021369,2]
[343114520,1732366253549,-516.19,0.00021369,2]
[343114521,1732366253558,-593.45,0.00021369,2]
[343114522,1732366253567,-1282.52,0.00021369,2]
[343114523,1732366253577,-887.97,0.00021369,2]
[343114524,1732366253586,-500.0,0.00021369,2]
[343114525,1732366253595,-2300.61,0.00021369,2]
[343114526,1732366253604,-528.07,0.00021369,2]
[343114527,1732366253614,-1538.6,0.00021369,2]
[343114528,1732366253623,-1008.44,0.00021369,2]
[343114529,1732366253633,-636.89,0.00021369,2]
[343114530,1732366253642,-500.0,0.00021369,2]
[343114531,1732366253652,-32000.29,0.00021369,2]
[343114532,1732366253662,-672.04,0.00021369,2]
[343114533,1732366253670,-534.97,0.00021369,2]
[343114534,1732366253680,-626.8,0.00021369,2]
[343114535,1732366253689,-500.0,0.00021369,2]
[343114536,1732366253698,-635.09,0.00021369,2]
[343114537,1732366253712,-706.69,0.00021369,2]
[343114538,1732366253722,-327.62959704,0.00021369,2]
[343114539,1732366253731,-500.0,0.00021369,2]
[343114540,1732366253740,-500.0,0.00021369,2]
[343114541,1732366253749,-1504.44,0.00021369,2]
[343114542,1732366253758,-4470.66,0.00021369,2]
[343114543,1732366253768,-1264.94,0.00021369,2]
[343114544,1732366253777,-200.0,0.00021369,2]
[343114545,1732366253787,-597.49,0.00021369,2]
[343114546,1732366253800,-830.37,0.00021369,2]
[343114547,1732366253810,-2510.69,0.00021369,2]
[343114548,1732366253819,-500.0,0.00021369,2]
[343114549,1732366253830,-1529.76,0.00021369,2]
[343114550,1732366253839,-500.0,0.00021369,2]
[343114551,1732366253848,-500.0,0.00021369,2]
[343114552,1732366253857,-950.08,0.00021369,2]
[343114553,1732366253867,-303.86473509,0.00021369,2]
[343114554,1732366253877,-2119.31,0.00021369,2]
[343114555,1732366253887,-618.96,0.00021369,2]
[343114556,1732366253896,-882.37,0.00021369,2]
[343114557,1732366253905,-500.0,0.00021369,2]
[343114558,1732366253915,-1056.35,0.00021369,2]
[343114559,1732366253924,-872.19,0.00021369,2]
[343114560,1732366253932,-500.0,0.00021369,2]
[343114561,1732366253942,-500.0,0.00021369,2]
[343114562,1732366253952,-1217.38,0.00021369,2]
[343114563,1732366253963,-221.88389917,0.00021369,2]
[343114564,1732366253973,-576.84,0.00021369,2]
[343114565,1732366253983,-7473.65,0.00021369,2]
[343114566,1732366253993,-500.0,0.00021369,2]
[343114567,1732366254003,-590.73,0.00021369,2]
[343114568,1732366254012,-500.0,0.00021369,2]
[343114569,1732366254022,-500.0,0.00021369,2]
[343114570,1732366254031,-674.66,0.00021369,2]
[343114571,1732366254040,-500.0,0.00021369,2]
[343114572,1732366254049,-538.85,0.00021369,2]
[343114573,1732366254059,-605.75,0.00021369,2]
[343114574,1732366254068,-850.07,0.00021369,2]
[343114575,1732366254078,-1816.65,0.00021369,2]
[343114576,1732366254087,-13459.67,0.00021369,2]
[343114577,1732366254096,-882.91,0.00021369,2]
[343114578,1732366254105,-500.0,0.00021369,2]
[343114579,1732366254114,-5328.25,0.00021369,2]
[343114580,1732366254123,-738.33,0.00021369,2]
[343114581,1732366254132,-700.55,0.00021369,2]
[343114582,1732366254142,-500.0,0.00021369,2]
[343114583,1732366254151,-575.52,0.00021369,2]
[343114584,1732366254160,-4056.23,0.00021369,2]
[343114585,1732366254170,-546.44,0.00021369,2]
[343114586,1732366254179,-1127.26,0.00021369,2]
[343114587,1732366254188,-500.0,0.00021369,2]
[343114588,1732366254197,-716.22,0.00021369,2]
[343114589,1732366254209,-889.01,0.00021369,2]
[343114590,1732366254218,-322.06815364,0.00021369,2]
[343114591,1732366254227,-1129.2,0.00021369,2]
[343114592,1732366254236,-530.0,0.00021397,2]
[343114593,1732366254246,-754.8,0.00021479,2]
[343114594,1732366254255,-151.0,0.00021499,3]
[343114595,1732366254264,-342.53113597,0.000215,2]
[343114596,1732366254274,-1500.0,0.00021522,2]
[343114597,1732366254284,-610.25775938,0.00021531,2]
[343114598,1732366254293,-500.0,0.00021643,2]
[343114599,1732366254303,-500.0,0.00021643,2]
[343114600,1732366254312,-500.0,0.00021643,2]
[343114601,1732366254322,-500.0,0.00021643,2]
[343114602,1732366254332,-500.0,0.00021643,2]
[343114603,1732366254341,-500.0,0.00021643,2]
[343114604,1732366254350,-607.85,0.00021643,2]
[343114605,1732366254360,-1635.9,0.00021643,2]
[343114606,1732366254369,-526.37,0.00021643,2]
[343114607,1732366254378,-500.0,0.00021643,2]
[343114608,1732366254387,-500.0,0.00021643,2]
[343114609,1732366254396,-748.76,0.00021643,2]
[343114610,1732366254406,-578.27,0.00021643,2]
[343114611,1732366254415,-799.01,0.00021643,2]
[343114612,1732366254424,-660.9,0.00021643,2]
[343114613,1732366254435,-500.0,0.00021643,2]
[343114614,1732366254444,-500.0,0.00021643,2]
[343114615,1732366254455,-1095.13,0.00021643,2]
[343114616,1732366254465,-500.0,0.00021643,2]
[343114617,1732366254475,-500.0,0.00021643,2]
[343114618,1732366254485,-660.43,0.00021643,2]
[343114619,1732366254494,-744.79,0.00021643,2]
[343114620,1732366254504,-602.21,0.00021643,2]
[343114621,1732366254513,-2349.5,0.00021643,2]
[343114622,1732366254523,-2006.5,0.00021643,2]
[343114623,1732366254533,-1551.55,0.00021643,2]
[343114624,1732366254542,-500.0,0.00021643,2]
[343114625,1732366254552,-1039.57,0.00021643,2]
[343114626,1732366254561,-1747.31,0.00021643,2]
[343114627,1732366254571,-1202.85,0.00021643,2]
[343114628,1732366254580,-1000.07,0.00021643,2]
[343114629,1732366254590,-686.29,0.00021643,2]
[343114630,1732366254600,-1081.0,0.00021643,2]
[343114631,1732366254610,-493.63734229,0.00021643,2]
[343114632,1732366254620,-1439.48,0.00021643,2]
[343114633,1732366254630,-469.16617808,0.00021643,2]
[343114634,1732366254639,-604.53,0.00021643,2]
[343114635,1732366254650,-1113.01,0.00021643,2]
[343114636,1732366254661,-500.0,0.00021643,2]
[343114637,1732366254671,-910.06,0.00021643,2]
[343114638,1732366254681,-500.0,0.00021643,2]
[343114639,1732366254691,-500.0,0.00021643,2]
[343114640,1732366254702,-1063.52,0.00021643,2]
[343114641,1732366254713,-1125.44,0.00021643,2]
[343114642,1732366254723,-999.35,0.00021643,2]
[343114643,1732366254733,-522.08,0.00021643,2]
[343114644,1732366254743,-1708.58,0.00021643,2]
[343114645,1732366254753,-1059.27,0.00021643,2]
[343114646,1732366254762,-552.4,0.00021643,2]
[343114647,1732366254772,-719.88,0.00021643,2]
[343114648,1732366254781,-615.14,0.00021643,2]
[343114649,1732366254794,-500.0,0.00021643,2]
[343114650,1732366254803,-1102.89,0.00021643,2]
[343114651,1732366254816,-581.08,0.00021643,2]
[343114652,1732366254826,-1792.59,0.00021643,2]
[343114653,1732366254835,-677.62,0.00021643,2]
[343114654,1732366254845,-3879.56,0.00021643,2]
[343114655,1732366254855,-663.99,0.00021643,2]
[343114656,1732366254865,-500.0,0.00021643,2]
[343114657,1732366254874,-577.21,0.00021643,2]
[343114658,1732366254886,-500.0,0.00021643,2]
[343114659,1732366254895,-833.58,0.00021643,2]